fUST/lending_fUST_20250602
["ID","MTS","AMOUNT","RATE_DAILY","PERIOD"]
[363711270,1748837437399,-512.55721097,0.00019632,2]
[363711271,1748837437409,-430.0,0.00019632,2]
[363711272,1748837437419,-430.0,0.00019632,2]
[363711273,1748837437428,-450.89423013,0.00019632,2]
[363711274,1748837437438,-484.51613927,0.00019632,2]
[363711275,1748837437448,-430.0,0.00019632,2]
[363711276,1748837437458,-430.0,0.00019632,2]
[363711277,1748837437468,-430.0,0.00019632,2]
[363711278,1748837437477,-462.78033214,0.00019632,2]
[363711279,1748837437487,-430.0,0.00019632,2]
[363711280,1748837437496,-468.97323991,0.00019632,2]
[363711281,1748837437506,-171.69476636,0.00019632,2]
[363711282,1748837437515,-430.0,0.00019632,2]
[363711283,1748837437525,-430.0,0.00019632,2]
[363711284,1748837437534,-430.0,0.00019632,2]
[363711285,1748837437544,-430.0,0.00019632,2]
[363711286,1748837437554,-430.0,0.00019632,2]
[363711287,1748837437563,-430.0,0.00019632,2]
[363711288,1748837437572,-500.0,0.00019632,2]
[363711289,1748837437582,-430.0,0.00019632,2]
[363711290,1748837437591,-433.97575212,0.00019717,2]
[363711291,1748837437605,-813.65973719,0.00019762,2]
[363711292,1748837437615,-448.83732581,0.00019863,2]
[363711293,1748837437624,-196.66581863,0.00019863,2]
[363711294,1748837437634,-448.4887307,0.00019863,2]
[363711295,1748837437644,-430.0,0.00019863,2]
[363711296,1748837437654,-430.0,0.00019863,2]
[363711297,1748837437663,-327.34,0.00019896,3]
[363711298,1748837437673,-430.0,0.00019904,2]
[363711299,1748837437683,-639.41,0.00019904,2]
[363711300,1748837437692,-430.0,0.00019904,2]
[363711301,1748837437702,-430.0,0.00019904,2]
[363711302,1748837437712,-532.53,0.00019904,2]
[363711303,1748837437722,-430.0,0.00019904,2]
[363711304,1748837437732,-481.76,0.00019905,2]
[363711305,1748837437741,-430.0,0.00019905,2]
[363711306,1748837437751,-739.66,0.00019905,2]
[363711307,1748837437761,-430.0,0.00019905,2]
[363711308,1748837437771,-430.0,0.00019905,2]
[363711310,1748837437782,-817.39,0.00019905,2]
[363711311,1748837437792,-430.0,0.00019905,2]
[363711312,1748837437801,-430.0,0.00019905,2]
[363711313,1748837437812,-430.0,0.00019905,2]
[363711314,1748837437823,-430.0,0.00019905,2]
[363711315,1748837437833,-744.05,0.00019905,2]
[363711316,1748837437844,-430.0,0.00019905,2]
[363711317,1748837437855,-430.0,0.00019906,2]
[363711318,1748837437865,-430.0,0.00019906,2]
[363711320,1748837437874,-430.0,0.00019906,2]
[363711321,1748837437884,-430.0,0.00019906,2]
[363711322,1748837437894,-430.0,0.00019906,2]
[363711323,1748837437903,-430.0,0.00019906,2]
[363711324,1748837437913,-430.0,0.00019906,2]
[363711325,1748837437923,-500.0,0.00019906,2]
[363711326,1748837437935,-363.42,0.00019906,2]
[363711327,1748837437945,-1000.0,0.00019944,2]
[363711328,1748837437955,-813.65973719,0.00019969,2]
[363711329,1748837437964,-1000.0,0.00020002,2]
[363711330,1748837437975,-229.39799938,0.00020037,2]
[363711331,1748837437986,-160.0,0.00020037,2]
[363711332,1748837437995,-12668.79298183,0.00020037,2]
[363711333,1748837438006,-423.56953423,0.00020037,2]
[363711334,1748837438016,-160.0,0.00020038,2]
[363711335,1748837438026,-160.0,0.00020038,2]
[363711336,1748837438035,-849.88,0.00020091,2]
[363711337,1748837438045,-500.0,0.00020123,2]
[363711338,1748837438054,-1200.0,0.00020129,2]
[363711339,1748837438064,-364.4406513,0.00020137,2]
[363711340,1748837438073,-364.4406513,0.00020137,2]
[363711341,1748837438082,-232.85825742,0.00020137,2]
[363711342,1748837438092,-500.0,0.0002014,2]
[363711343,1748837438102,-813.65973719,0.00020176,2]
[363711344,1748837438112,-430.0,0.00020178,2]
[363711345,1748837438122,-639.41,0.00020178,2]
[363711346,1748837438133,-430.0,0.00020178,2]
[363711347,1748837438143,-430.0,0.00020178,2]
[363711348,1748837438153,-532.53,0.00020178,2]
[363711349,1748837438162,-430.0,0.00020178,2]
[363711350,1748837438172,-481.76,0.00020179,2]
[363711351,1748837438182,-337.34,0.00020179,2]
[363711352,1748837438191,-739.66,0.00020179,2]
[363711353,1748837438202,-817.39,0.00020179,2]
[363711354,1748837438211,-430.0,0.00020179,2]
[363711355,1748837438221,-430.0,0.00020179,2]
[363711356,1748837438231,-430.0,0.00020179,2]
[363711357,1748837438240,-744.05,0.00020179,2]
[363711358,1748837438250,-379.58855895,0.00020179,2]
[363711359,1748837438259,-205.03508609,0.0002018,2]
[363711360,1748837438269,-430.0,0.0002018,2]
[363711361,1748837438279,-217.100284,0.00020187,2]
[363711362,1748837438288,-166.0,0.00020274,2]
[363711363,1748837438298,-3791.3817542,0.00020373,2]
[363711364,1748837438308,-813.65973719,0.00020383,3]
[363711365,1748837438318,-430.0,0.00020452,2]
[363711366,1748837438328,-639.41,0.00020452,2]
[363711367,1748837438338,-430.0,0.00020452,2]
[363711368,1748837438348,-430.0,0.00020452,2]
[363711369,1748837438358,-532.53,0.00020452,2]
[363711370,1748837438368,-430.0,0.00020452,2]
[363711371,1748837438378,-481.76,0.00020453,2]
[363711372,1748837438388,-739.66,0.00020453,2]
[363711373,1748837438398,-817.39,0.00020453,2]
[363711374,1748837438408,-430.0,0.00020453,2]
[363711375,1748837438419,-430.0,0.00020453,2]
[363711376,1748837438428,-430.0,0.00020453,2]
[363711377,1748837438438,-744.05,0.00020453,2]
[363711378,1748837438448,-193.0720684,0.00020454,2]
[363711379,1748837438458,-1009.7816681,0.00020492,2]
[363711380,1748837438468,-885.26,0.00020547,2]
[363711381,1748837438477,-1500.0,0.0002055,2]
[363711382,1748837438488,-813.65973719,0.0002059,3]
[363711383,1748837438498,-875.54,0.000206,2]
[363711384,1748837438507,-430.0,0.00020726,2]
[363711385,1748837438517,-639.41,0.00020726,2]
[363711386,1748837438527,-430.0,0.00020726,2]
[363711387,1748837438537,-430.0,0.00020726,2]
[363711388,1748837438547,-532.53,0.00020726,2]
[363711389,1748837438557,-430.0,0.00020726,2]
[363711390,1748837438664,-500.0,0.00020727,2]
[363711391,1748837438674,-481.76,0.00020727,2]
[363711392,1748837438684,-739.66,0.00020727,2]
[363711393,1748837438694,-817.39,0.00020727,2]
[363711394,1748837438704,-430.0,0.00020727,2]
[363711395,1748837438713,-430.0,0.00020727,2]
[363711396,1748837438723,-430.0,0.00020727,2]
[363711397,1748837438733,-744.05,0.00020727,2]
[363711398,1748837438742,-813.65973719,0.00020797,4]
[363711399,1748837438752,-601.00654139,0.00020855,2]
[363711400,1748837438762,-430.0,0.00021,2]
[363711401,1748837438771,-639.41,0.00021,2]
[363711402,1748837438781,-430.0,0.00021,2]
[363711403,1748837438791,-430.0,0.00021,2]
[363711404,1748837438801,-532.53,0.00021,2]
[363711405,1748837438811,-181.52060736,0.00021,2]
[363711406,1748837438821,-481.76,0.00021001,2]
[363711407,1748837438832,-739.66,0.00021001,2]
[363711408,1748837438842,-817.39,0.00021001,2]
[363711409,1748837438851,-430.0,0.00021001,2]
[363711410,1748837438861,-430.0,0.00021001,2]
[363711411,1748837438870,-430.0,0.00021001,2]
[363711412,1748837438880,-744.05,0.00021001,2]
[363711413,1748837438890,-813.65973719,0.00021003,4]
[363711414,1748837438899,-1274.83,0.00021005,2]
[363711415,1748837438909,-885.26,0.00021095,3]
[363711416,1748837438919,-364.3782178,0.00021096,2]
[363711417,1748837438930,-1500.0,0.00021098,2]
[363711418,1748837438940,-167.56104164,0.00021202,2]
[363711419,1748837438950,-813.65973719,0.0002121,4]
[363711420,1748837438959,-3791.3817542,0.00021216,2]
[363711421,1748837438969,-1200.0,0.00021225,2]
[363711422,1748837438980,-601.00654139,0.00021247,2]
[363711423,1748837438991,-430.0,0.00021274,2]
[363711424,1748837439001,-639.41,0.00021274,2]
[363711425,1748837439012,-430.0,0.00021274,2]
[363711426,1748837439022,-430.0,0.00021274,2]
[363711427,1748837439032,-532.53,0.00021274,2]
[363711428,1748837439042,-481.76,0.00021275,2]
[363711429,1748837439052,-739.66,0.00021275,2]
[363711430,1748837439062,-817.39,0.00021275,2]
[363711431,1748837439072,-430.0,0.00021275,2]
[363711432,1748837439081,-430.0,0.00021275,2]
[363711433,1748837439091,-744.05,0.00021275,2]
[363711434,1748837439101,-500.0,0.00021388,2]
[363711435,1748837439111,-268.83691719,0.00021388,2]
[363711436,1748837439120,-155.07391524,0.00021389,2]
[363711437,1748837439130,-151.0,0.00021389,2]
[363711438,1748837439140,-2000.0,0.00021389,2]
[363711439,1748837439150,-2500.0,0.00021389,2]
[363711440,1748837439160,-2000.0,0.00021389,2]
[363711441,1748837439169,-2500.0,0.00021389,2]
[363711442,1748837439179,-2000.0,0.00021389,2]
[363711443,1748837439189,-207.4,0.00021389,2]
[363711444,1748837439199,-2000.0,0.00021389,2]
[363711445,1748837439209,-2500.0,0.00021389,2]
[363711446,1748837439220,-2000.0,0.00021389,2]
[363711447,1748837439230,-2500.0,0.00021389,2]
[363711448,1748837439240,-5000.0,0.00021389,2]
[363711449,1748837439250,-2000.0,0.00021389,2]
[363711450,1748837439261,-2500.0,0.00021389,2]
[363711451,1748837439270,-2000.0,0.00021389,2]
[363711452,1748837439279,-2500.0,0.00021389,2]
[363711453,1748837439289,-2000.0,0.00021389,2]
[363711454,1748837439299,-2500.0,0.00021389,2]
[363711455,1748837439309,-2500.0,0.00021389,2]
[363711456,1748837439319,-2000.0,0.00021389,2]
[363711457,1748837439328,-2500.0,0.00021389,2]
[363711458,1748837439338,-2000.0,0.00021389,2]
[363711459,1748837439349,-2500.0,0.00021389,2]
[363711460,1748837439358,-2000.0,0.00021389,2]
[363711461,1748837439368,-2000.0,0.00021389,2]
[363711462,1748837439379,-2500.0,0.00021389,2]
[363711463,1748837439390,-858.79525711,0.00021389,2]
[363711464,1748837439399,-2500.0,0.00021389,2]
[363711465,1748837439410,-2500.0,0.00021389,2]
[363711466,1748837439420,-2500.0,0.00021389,2]
[363711467,1748837439431,-2500.0,0.00021389,2]
[363711468,1748837439443,-813.65973719,0.00021417,5]
[363711469,1748837439453,-601.00654139,0.00021427,2]
[363711470,1748837439463,-176.4540852,0.00021507,2]
[363711471,1748837439473,-581.6591258,0.00021507,2]
[363711472,1748837439483,-176.5287595,0.00021507,2]
[363711473,1748837439493,-154.5384965,0.00021507,2]
[363711474,1748837439503,-572.502888,0.00021507,2]
[363711475,1748837439513,-319.6416366,0.00021507,2]
[363711476,1748837439523,-176.5287595,0.00021507,2]
[363711477,1748837439533,-572.502888,0.00021507,2]
[363711478,1748837439542,-176.5287595,0.00021507,2]
[363711479,1748837439552,-572.502888,0.00021507,2]
[363711480,1748837439562,-176.5287595,0.00021507,2]
[363711481,1748837439571,-179.3436481,0.00021507,2]
[363711482,1748837439582,-430.0,0.00021548,2]
[363711483,1748837439592,-639.41,0.00021548,2]
[363711484,1748837439602,-460.97598513,0.00021548,2]
[363711485,1748837439612,-430.0,0.00021548,2]
[363711486,1748837439621,-532.53,0.00021548,2]
[363711487,1748837439631,-481.76,0.00021549,2]
[363711488,1748837439641,-739.66,0.00021549,2]
[363711489,1748837439651,-817.39,0.00021549,2]
[363711490,1748837439661,-553.43196572,0.00021549,2]
[363711491,1748837439670,-430.0,0.00021549,2]
[363711492,1748837439679,-744.05,0.00021549,2]
[363711493,1748837439687,-151.53913761,0.00021574,2]
[363711494,1748837439696,-813.65973719,0.00021624,5]
[363711495,1748837439704,-885.26,0.00021643,4]
[363711496,1748837439712,-158.74462173,0.00021667,2]
[363711497,1748837439721,-500.0,0.00021667,2]
[363711498,1748837439731,-168.77256269,0.00021667,2]
[363711499,1748837439739,-500.0,0.00021667,2]
[363711500,1748837439748,-160.22264998,0.00021667,2]
[363711501,1748837439757,-500.0,0.00021738,2]
[363711502,1748837439765,-501.35161391,0.00021738,2]
[363711503,1748837439774,-500.0,0.00021738,2]
[363711504,1748837439783,-500.0,0.00021738,2]
[363711505,1748837439792,-500.0,0.00021738,2]
[363711506,1748837439801,-500.0,0.00021738,2]
[363711507,1748837439810,-195.14323499,0.00021791,2]
[363711508,1748837439820,-441.93549265,0.00021791,2]
[363711509,1748837439954,-58.06450735,0.00021791,2]
[363711510,1748837439964,-578.69287274,0.00021791,2]
[363711511,1748837439977,-500.0,0.00021791,2]
[363711512,1748837439987,-500.0,0.00021791,2]
[363711513,1748837439996,-875.54,0.000218,2]
[363711515,1748837440007,-500.41146898,0.00021815,2]
[363711517,1748837440017,-561.97811827,0.00021815,2]
[363711519,1748837440027,-500.0,0.00021815,2]
[363711520,1748837440037,-500.8252894,0.00021815,2]
[363711521,1748837440047,-500.0,0.00021815,2]
[363711522,1748837440056,-500.83944222,0.00021815,2]
[363711523,1748837440066,-501.21357946,0.00021815,2]
[363711524,1748837440075,-500.49036169,0.00021815,2]
[363711525,1748837440086,-505.52604518,0.00021815,2]
[363711526,1748837440096,-500.0,0.00021815,2]
[363711527,1748837440106,-500.86435813,0.00021815,2]
[363711528,1748837440117,-500.0,0.00021815,2]
[363711529,1748837440127,-272.22500081,0.00021815,2]
[363711530,1748837440138,-500.0,0.00021815,2]
[363711531,1748837440148,-501.5856008,0.00021815,2]
[363711532,1748837440157,-500.0,0.00021815,2]
[363711533,1748837440167,-500.0,0.00021815,2]
[363711534,1748837440177,-239.91739447,0.00021815,2]
[363711535,1748837440187,-500.0,0.00021815,2]
[363711536,1748837440198,-206.20063128,0.00021815,2]
[363711537,1748837440498,-293.79936872,0.00021815,2]
[363711538,1748837440505,-271.76850087,0.00021815,2]
[363711539,1748837440512,-600.0,0.00021815,2]
[363711540,1748837440520,-323.69614887,0.00021822,2]
[363711541,1748837440528,-639.41,0.00021822,2]
[363711542,1748837440535,-430.0,0.00021822,2]
[363711543,1748837440541,-532.53,0.00021822,2]
[363711544,1748837440550,-481.76,0.00021823,2]
[363711545,1748837440560,-739.66,0.00021823,2]
[363711546,1748837440570,-817.39,0.00021823,2]
[363711547,1748837440580,-430.0,0.00021823,2]
[363711548,1748837440589,-744.05,0.00021823,2]
[363711549,1748837440598,-813.65973719,0.00021831,6]
[363711550,1748837440609,-601.0065414,0.00021856,2]
[363711551,1748837440618,-12500.0,0.00021865,2]
[363711552,1748837440628,-12500.0,0.00021874,2]
[363711554,1748837440637,-5000.0,0.00021874,2]
[363711555,1748837440647,-12500.0,0.00021883,2]
[363711556,1748837440656,-12500.0,0.00021892,2]
[363711557,1748837440666,-12500.0,0.000219,2]
[363711558,1748837440676,-12500.0,0.00021909,2]
[363711559,1748837440685,-203.57415183,0.00021917,2]
[363711560,1748837440695,-500.0,0.00021917,2]
[363711561,1748837440703,-538.96,0.00021917,2]
[363711562,1748837440713,-538.96,0.00021917,2]
[363711563,1748837440722,-538.96,0.00021917,2]
[363711564,1748837440731,-538.96,0.00021917,2]
[363711565,1748837440741,-538.96,0.00021917,2]
[363711566,1748837440751,-538.96,0.00021917,2]
[363711567,1748837440759,-538.96,0.00021917,2]
[363711568,1748837440769,-538.96,0.00021917,2]
[363711569,1748837440778,-538.96,0.00021917,2]
[363711570,1748837440787,-538.96,0.00021917,2]
[363711571,1748837440898,-538.96,0.00021917,2]
[363711572,1748837440908,-500.0,0.00021917,2]
[363711573,1748837440918,-500.0,0.00021917,2]
[363711574,1748837440929,-500.0,0.00021917,2]
[363711575,1748837440940,-500.0,0.00021917,2]
[363711576,1748837440949,-500.0,0.00021917,2]
[363711577,1748837440959,-500.0,0.00021917,2]
[363711578,1748837440969,-500.0,0.00021917,2]
[363711579,1748837440979,-500.0,0.00021917,2]
[363711580,1748837440989,-363.35405344,0.00021917,2]
[363711581,1748837440998,-500.0,0.00021917,2]
[363711582,1748837441014,-500.0,0.00021917,2]
[363711583,1748837441026,-500.0,0.00021917,2]
[363711584,1748837441036,-500.0,0.00021917,2]
[363711585,1748837441045,-500.0,0.00021917,2]
[363711586,1748837441056,-500.0,0.00021917,2]
[363711587,1748837441066,-500.0,0.00021917,2]
[363711588,1748837441077,-327.55331113,0.00021917,2]
[363711589,1748837441087,-323.0767398,0.00021918,7]
[363711590,1748837441097,-150.0,0.00021918,2]
[363711591,1748837441107,-12500.0,0.00021918,2]
[363711592,1748837441117,-635.05710346,0.00021918,2]
[363711593,1748837441128,-12500.0,0.00021918,2]
[363711594,1748837441140,-1699.77,0.00021918,2]
[363711595,1748837441150,-273.13548576,0.00021937,2]
[363711596,1748837441160,-5000.0,0.00021937,2]
[363711597,1748837441170,-500.0,0.0002195,2]
[363711598,1748837441179,-921660.14669471,0.00021999,2]
[363711599,1748837441435,-0.00442947,0.00021999,2]
[363711646,1748837446960,-500.0,0.00019083,2]
[363711647,1748837446970,-450.31995003,0.00019083,2]
[363711648,1748837446981,-1430.40751034,0.00021999,2]
[363711649,1748837535566,-1430.0,0.00018892,2]
[363711654,1748838188040,7028.45,0.0001552,2]
[363711655,1748838190990,226.498785,0.00013699,2]
[363711681,1748838632608,-5000.0,0.00017721,2]
[363711682,1748838632618,-687.3390545,0.00018081,2]
[363711683,1748838632628,-347.68,0.00018374,2]
[363711684,1748838632639,-603.43877788,0.000189,2]
[363711685,1748838632649,-2015.91814985,0.000189,2]
[363711686,1748838632658,-394.12055351,0.00019032,2]
[363711687,1748838632668,-1100.0,0.00019033,2]
[363711688,1748838632677,-603.43877785,0.00019072,2]
[363711689,1748838632686,-2847.58807306,0.00019077,2]
[363711690,1748838632695,-437.37631068,0.00019077,2]
[363711691,1748838632705,-430.0,0.00019077,2]
[363711692,1748838632714,-430.0,0.00019077,2]
[363711693,1748838632724,-430.0,0.00019077,2]
[363711694,1748838632734,-430.0,0.00019077,2]
[363711695,1748838632743,-436.4256343,0.00019077,2]
[363711696,1748838632753,-667.56,0.00019077,2]
[363711697,1748838632762,-458.70973528,0.00019077,2]
[363711698,1748838632773,-430.0,0.00019077,2]
[363711699,1748838632783,-172.21749192,0.00019077,2]
[363711700,1748838632792,-643.28,0.00019077,2]
[363711701,1748838632801,-430.0,0.00019077,2]
[363711702,1748838632811,-430.0,0.00019077,2]
[363711703,1748838632820,-430.0,0.00019077,2]
[363711704,1748838632830,-430.0,0.00019077,2]
[363711705,1748838632839,-812.28,0.00019077,2]
[363711706,1748838632848,-430.0,0.00019077,2]
[363711707,1748838632859,-431.53,0.00019077,2]
[363711708,1748838632868,-430.0,0.00019077,2]
[363711709,1748838632878,-430.0,0.00019077,2]
[363711710,1748838632887,-430.0,0.00019077,2]
[363711711,1748838632897,-500.0,0.00019077,2]
[363711712,1748838632906,-500.0,0.00019077,2]
[363711713,1748838632916,-500.0,0.00019077,2]
[363711714,1748838632926,-613.35817204,0.00019077,2]
[363711715,1748838632935,-500.0,0.00019077,2]
[363711716,1748838632945,-500.0,0.00019077,2]
[363711717,1748838632955,-500.0,0.00019077,2]
[363711718,1748838632964,-500.0,0.00019077,2]
[363711719,1748838632975,-500.0,0.00019077,2]
[363711720,1748838632993,-500.0,0.00019077,2]
[363711721,1748838633006,-500.0,0.00019077,2]
[363711722,1748838633016,-556.87277444,0.00019077,2]
[363711723,1748838633027,-500.0,0.00019077,2]
[363711724,1748838633037,-500.0,0.00019077,2]
[363711725,1748838633047,-500.0,0.00019077,2]
[363711726,1748838633057,-556.87277444,0.00019077,2]
[363711727,1748838633067,-500.0,0.00019077,2]
[363711728,1748838633077,-500.0,0.00019077,2]
[363711729,1748838633087,-556.87277444,0.00019077,2]
[363711730,1748838633098,-500.0,0.00019077,2]
[363711731,1748838633108,-545.61793895,0.00019077,2]
[363711732,1748838633118,-556.87277444,0.00019077,2]
[363711733,1748838633128,-500.0,0.00019077,2]
[363711734,1748838633138,-500.0,0.00019077,2]
[363711735,1748838633149,-556.87277444,0.00019077,2]
[363711736,1748838633168,-500.0,0.00019077,2]
[363711737,1748838633184,-556.87277444,0.00019077,2]
[363711738,1748838633200,-500.0,0.00019077,2]
[363711739,1748838633215,-500.0,0.00019077,2]
[363711740,1748838633233,-556.87277444,0.00019077,2]
[363711741,1748838633246,-500.0,0.00019077,2]
[363711742,1748838633258,-549.34742533,0.00019077,2]
[363711743,1748838633272,-556.87277444,0.00019077,2]
[363711744,1748838633287,-500.0,0.00019077,2]
[363711745,1748838633299,-556.87277444,0.00019077,2]
[363711746,1748838633313,-556.87277444,0.00019077,2]
[363711747,1748838633327,-500.0,0.00019077,2]
[363711748,1748838633340,-556.87277444,0.00019077,2]
[363711749,1748838633354,-500.0,0.00019077,2]
[363711750,1748838633367,-556.87277444,0.00019077,2]
[363711751,1748838633381,-500.0,0.00019077,2]
[363711752,1748838633395,-556.87277444,0.00019077,2]
[363711753,1748838633408,-500.0,0.00019077,2]
[363711754,1748838633419,-556.87277444,0.00019077,2]
[363711755,1748838633431,-556.87277444,0.00019077,2]
[363711756,1748838633446,-500.0,0.00019077,2]
[363711757,1748838633459,-556.87277444,0.00019077,2]
[363711758,1748838633472,-500.0,0.00019077,2]
[363711759,1748838633486,-556.87277444,0.00019077,2]
[363711760,1748838633499,-556.87277444,0.00019077,2]
[363711761,1748838633511,-500.0,0.00019077,2]
[363711762,1748838633523,-556.87277444,0.00019077,2]
[363711763,1748838633535,-556.87277444,0.00019077,2]
[363711764,1748838633545,-500.0,0.00019077,2]
[363711765,1748838633556,-556.87277444,0.00019077,2]
[363711766,1748838633568,-556.87277444,0.00019077,2]
[363711767,1748838633583,-556.87277444,0.00019077,2]
[363711768,1748838633595,-556.87277444,0.00019077,2]
[363711769,1748838633609,-556.87277444,0.00019077,2]
[363711770,1748838633621,-556.87277444,0.00019077,2]
[363711771,1748838633635,-556.87277444,0.00019077,2]
[363711772,1748838633649,-556.87277444,0.00019077,2]
[363711773,1748838633663,-556.87277444,0.00019077,2]
[363711774,1748838633677,-556.87277444,0.00019077,2]
[363711775,1748838633691,-556.87277444,0.00019077,2]
[363711776,1748838633704,-556.87277444,0.00019077,2]
[363711777,1748838633715,-556.87277444,0.00019077,2]
[363711778,1748838633727,-556.87277444,0.00019077,2]
[363711779,1748838633737,-556.87277444,0.00019077,2]
[363711780,1748838633749,-556.87277444,0.00019077,2]
[363711781,1748838633763,-556.87277444,0.00019077,2]
[363711782,1748838633775,-556.87277444,0.00019077,2]
[363711783,1748838633790,-556.87277444,0.00019077,2]
[363711784,1748838633803,-556.87277444,0.00019077,2]
[363711785,1748838633815,-556.87277444,0.00019077,2]
[363711786,1748838633826,-556.87277444,0.00019077,2]
[363711787,1748838633838,-556.87277444,0.00019077,2]
[363711788,1748838633850,-556.87277444,0.00019077,2]
[363711789,1748838633865,-942.22013299,0.00019077,2]
[363711790,1748838633877,-942.22013299,0.00019077,2]
[363711791,1748838633890,-942.22013299,0.00019077,2]
[363711792,1748838633902,-942.22013299,0.00019077,2]
[363711793,1748838633914,-942.22013299,0.00019077,2]
[363711794,1748838633925,-942.22013299,0.00019077,2]
[363711795,1748838633936,-942.22013299,0.00019077,2]
[363711796,1748838633947,-942.22013299,0.00019077,2]
[363711797,1748838633958,-942.22013299,0.00019077,2]
[363711798,1748838633969,-942.22013299,0.00019077,2]
[363711799,1748838633981,-942.22013299,0.00019077,2]
[363711800,1748838633993,-942.22013299,0.00019077,2]
[363711801,1748838634008,-942.22013299,0.00019077,2]
[363711802,1748838634024,-942.22013299,0.00019077,2]
[363711803,1748838634037,-942.22013299,0.00019077,2]
[363711804,1748838634049,-942.22013299,0.00019077,2]
[363711805,1748838634061,-942.22013299,0.00019077,2]
[363711806,1748838634074,-942.22013299,0.00019077,2]
[363711807,1748838634087,-942.22013299,0.00019077,2]
[363711808,1748838634098,-942.22013299,0.00019077,2]
[363711809,1748838634110,-942.22013299,0.00019077,2]
[363711810,1748838634122,-942.22013299,0.00019077,2]
[363711811,1748838634135,-942.22013299,0.00019077,2]
[363711812,1748838634147,-942.22013299,0.00019077,2]
[363711813,1748838634158,-942.22013299,0.00019077,2]
[363711814,1748838634170,-942.22013299,0.00019077,2]
[363711815,1748838634183,-942.22013299,0.00019077,2]
[363711816,1748838634194,-942.22013299,0.00019077,2]
[363711817,1748838634206,-942.22013299,0.00019077,2]
[363711818,1748838634218,-942.22013299,0.00019077,2]
[363711819,1748838634229,-942.22013299,0.00019077,2]
[363711820,1748838634241,-942.22013299,0.00019077,2]
[363711821,1748838634252,-942.22013299,0.00019077,2]
[363711822,1748838634264,-942.22013299,0.00019077,2]
[363711823,1748838634276,-942.22013299,0.00019077,2]
[363711824,1748838634288,-942.22013299,0.00019077,2]
[363711825,1748838634299,-965.77563633,0.00019077,2]
[363711826,1748838634311,-965.77563633,0.00019077,2]
[363711827,1748838634323,-965.77563633,0.00019077,2]
[363711828,1748838634335,-965.77563633,0.00019077,2]
[363711829,1748838634346,-965.77563633,0.00019077,2]
[363711830,1748838634357,-965.77563633,0.00019077,2]
[363711831,1748838634369,-965.77563633,0.00019077,2]
[363711832,1748838634380,-965.77563633,0.00019077,2]
[363711833,1748838634393,-965.77563633,0.00019077,2]
[363711834,1748838634405,-430.0,0.00019079,2]
[363711835,1748838634417,-445.8948729,0.00019079,2]
[363711836,1748838634428,-430.0,0.00019079,2]
[363711837,1748838634439,-430.0,0.00019079,2]
[363711838,1748838634450,-430.0,0.00019079,2]
[363711839,1748838634462,-438.55036204,0.00019079,2]
[363711840,1748838634473,-500.0,0.00019079,2]
[363711841,1748838634485,-430.0,0.00019079,2]
[363711842,1748838634496,-430.0,0.00019079,2]
[363711843,1748838634507,-430.0,0.00019079,2]
[363711844,1748838634518,-442.21440174,0.00019079,2]
[363711845,1748838634530,-430.0,0.00019079,2]
[363711846,1748838634541,-470.51971962,0.00019079,2]
[363711847,1748838634552,-430.0,0.00019079,2]
[363711848,1748838634563,-430.0,0.00019079,2]
[363711849,1748838634574,-430.0,0.00019079,2]
[363711850,1748838634585,-430.0,0.00019079,2]